Cogmind - Beta 16.1 @@@ ROGUE MODE // 2026.02.18 @ 22:24:21 Player: AlmondRoll Result: Destroyed by 4Q-82C(R) with Subdweller Machine Gun Performance ------------- Evolutions (0) 0 Regions Visited (2) 400 Robots Destroyed (28) 140 Value Destroyed (518) 518 Prototype IDs (0) 0 Alien Tech Used (0) 0 Bonus (0) 0 TOTAL SCORE: 1058 Bonus ------- None Cogmind --------- Core Integrity 0/250 Matter 279/300 Energy 69/100 System Corruption 0% Temperature Cool (0) Movement Treading (240) Ox1 Location -10/Subcaves Parts ------- > --- POWER (1) -------- (None) > --- PROPULSION (2) --- Light Treads Light Treads > --- UTILITY (2) ------ High-capacity Storage Unit Subdweller Optics > --- WEAPON (2) ------- Beam Cannon Light Cannon > --- INVENTORY (20) --- Light Treads Light Treads Light Treads Wheel Compact Wheel Recalibrator EM Pulse Gun Medium Laser Medium Laser Beam Cannon Light Assault Rifle Light Cannon Light Cannon Light Cannon Mining Laser Mining Laser Peak State ------------ > --- POWER ------------ Light Ion Engine > --- PROPULSION ------- Light Treads Light Treads > --- UTILITY ---------- High-capacity Storage Unit Terrain Scanner > --- WEAPON ----------- Beam Cannon Light Cannon > --- INVENTORY -------- Light Treads Light Treads Light Treads Light Treads Wheel Compact Wheel Recalibrator EM Pulse Gun Medium Laser Medium Laser Beam Cannon Light Assault Rifle Light Cannon Light Cannon Light Cannon Mining Laser Mining Laser [Rating: 9] Favorites ----------- Power Light Ion Engine Engine Light Ion Engine Propulsion Light Treads Treads Light Treads Leg Aluminum Leg Utility Terrain Scanner Device Terrain Scanner Storage High-capacity Storage Unit Weapon Light Cannon Energy Gun Medium Laser Energy Cannon Beam Cannon Ballistic Cannon Light Cannon Build | -11 -10 -10 ------- Run | Yrd Mat Sub Slots Evolved . | . . . Power . | . . . Propulsion . | . . . Utility . | . . . Weapon . | . . . Parts Attached 11 | 2 6 3 Power 1 | . 1 . Engine 1 | . 1 . Core . | . . . Reactor . | . . . Propulsion 3 | 2 . 1 Treads 3 | 2 . 1 Leg . | . . . Wheel . | . . . Hover . | . . . Flight . | . . . Utility 3 | . 2 1 Device 2 | . 1 1 Storage 1 | . 1 . Processor . | . . . Hackware . | . . . Protection . | . . . Artifact . | . . . Weapon 4 | . 3 1 Energy Gun . | . . . Energy Cannon 1 | . 1 . Ballistic Gun . | . . . Ballistic Cannon 3 | . 2 1 Launcher . | . . . Special Weapon . | . . . Impact Weapon . | . . . Slashing Weapon . | . . . Piercing Weapon . | . . . Special Melee Weapon . | . . . Unidentified Prototypes . | . . . Parts Lost 5 | . 1 4 Power 2 | . 1 1 Propulsion 1 | . . 1 Utility 1 | . . 1 Weapon 1 | . . 1 Highest Loss Streak 3 | . 1 3 To Critical Strikes . | . . . Average Backups 12 | 4 10 17 Power . | 1 . . Propulsion 4 | 2 3 6 Utility . | . . 1 Weapon 7 | 1 5 10 Tool/Special . | . . . Unused Backups 19 | . 3 16 Power 1 | . 1 . Propulsion 6 | . 1 5 Utility 2 | . 1 1 Weapon 10 | . . 10 Tool/Special . | . . . Average Slot Usage (%) 94 | . 96 91 Engine 11 | . 13 6 Treads 28 | . 28 28 Device 12 | . 11 13 Storage 14 | . 14 14 Energy Gun 4 | . 6 . Energy Cannon 9 | . 6 14 Ballistic Cannon 14 | . 14 13 Peak Build Rating 9 | 6 9 9 Average Rating 8 | 5 7 8 On Entrance 7 | 6 6 9 Avg Prop Armor Cover (%) . | . . . Naked Turns . | . . . Heaviest Build 50 | 12 50 50 Greatest Support 40 | 40 40 40 Greatest Overweight (x) 1 | . 1 1 Average Overweight (x) . | . . 1 Largest Inventory Capacity 20 | 8 20 20 Average Capacity 15 | 8 13 20 Most Carried 18 | 6 18 18 Average Carried 12 | 4 10 17 Final Capacity 20 | 8 20 20 Final Carried 18 | 4 18 16 Class Distribution -------------------- 100% | Mutant Dominant Class ---------------- Mutant | -10/Materials Mutant | -10/Subcaves Resources | -11 -10 -10 ----------- Run | Yrd Mat Sub Matter Collected 545 | 216 287 42 Remotely . | . . . Salvage Created 771 | . 673 98 Parts 64 | . 55 9 Haulers Intercepted 1 | . 1 . Recyclers Shooed 1 | 1 . . Parts Field Recycled . | . . . Retrieved Matter . | . . . Parts Self-Destructed 5 | . . 5 Prevented . | . . . Parts Restored . | . . . Kills | -11 -10 -10 ------- Run | Yrd Mat Sub Combat Hostiles Destroyed 17 | . 13 4 Cannons 17 | . 13 4 Classes Destroyed 10 | . 8 2 Worker 2 | . 2 . Hauler 1 | . 1 . Recycler 3 | . 3 . Mechanic 1 | . 1 . Operator 2 | . 2 . Watcher 2 | . 2 . Swarmer 8 | . 7 1 Grunt 6 | . 6 . Sentry 1 | . . 1 Subdweller 2 | . . 2 Best Kill Streak 9 | . 9 2 Combat Bots Only 6 | . 6 2 Max Kills in Single Turn 2 | . 2 1 Gunslinging . | . . . Exploded . | . . . Melee . | . . . Uniques/NPCs Destroyed . | . . . Combat | -11 -10 -10 -------- Run | Yrd Mat Sub Hostile Shots Fired 105 | . 80 25 Missed 25 | . 19 6 Hits 80 | . 61 19 Projectile 80 | . 61 19 Critical Strikes 4 | . 2 2 Damage Taken 960 | . 574 386 Core 263 | . 151 112 Absorbed by Shields . | . . . Core Remaining (%) 100 | 100 . . Volleys Fired 55 | 3 39 13 Largest 2 | 2 2 2 Hottest 100 | 100 100 90 Shots Fired 108 | 6 78 24 Gun 10 | 6 4 . Cannon 98 | . 74 24 Launcher . | . . . Special . | . . . Kinetic 71 | . 58 13 Thermal 37 | 6 20 11 Explosive . | . . . Electromagnetic . | . . . Robot Hit Streak 19 | 4 7 19 Robot Miss Streak 3 | 1 3 1 Penetration Max . | . . . Secondary Targets . | . . . Shots Hit Robots 64 | 5 39 20 Core Hits 33 | 1 25 7 Critical Kills . | . . . Critical Parts Destroyed . | . . . Critical Strikes 1 | . 1 . Burn 1 | . 1 . Melee Attacks . | . . . Impact . | . . . Slashing . | . . . Piercing . | . . . Sneak Attacks . | . . . Combat Hostiles . | . . . Follow-up Attacks . | . . . Damage Inflicted 1182 | 68 765 349 Guns 99 | 63 36 . Cannons 1070 | . 721 349 Explosions . | . . . Melee . | . . . Ramming 13 | 5 8 . Kinetic 751 | . 560 191 Thermal 418 | 63 197 158 Explosive . | . . . Electromagnetic . | . . . Impact . | . . . Slashing . | . . . Piercing . | . . . Highest Corruption . | . . . Average Corruption . | . . . Corruption Purged . | . . . Corruption Blocked . | . . . Overload Shots . | . . . Overflow Damage . | . . . Projectiles . | . . . Explosions . | . . . Melee . | . . . Knockbacks 4 | . 2 2 Impact . | . . . Kinetic 3 | . 1 2 Secondary 1 | . 1 . Self-Inflicted Damage . | . . . Shots . | . . . Rammed 4 | 2 2 . Targets Rammed 4 | 2 2 . Kicked . | . . . Crushed . | . . . Highest Temperature 264 | 137 264 . Average Temperature 65 | 71 64 . Received Heat Transfer 222 | . 180 42 Siege Activations . | . . . Martial Activations . | . . . Shielding Activations . | . . . Robots Disrupted . | . . . Combat Hostiles . | . . . Robots Corrupted . | . . . Combat Hostiles . | . . . Parts Fried . | . . . Impact Corruptions . | . . . Robots Melted . | . . . Combat Hostiles . | . . . Parts Melted 1 | . 1 . Heat Transferred 1036 | 185 518 333 Parts Sabotaged . | . . . Parts Stolen . | . . . Parts Stripped . | . . . Power Chain Reactions . | . . . Alert | -11 -10 -10 ------- Run | Yrd Mat Sub Maximum Alert Level 1 | . 1 . Low Security (%) 96 | 100 96 . Level 1 3 | . 3 . Level 2 . | . . . Level 3 . | . . . Level 4 . | . . . Level 5 . | . . . High Security . | . . . Max Security . | . . . Peak Influence 216 | . 216 . Initial . | . . . Average 78 | . 80 . Influence Increases 460 | . 420 40 Destroy 0b10 Robot/C 300 | . 260 40 Destroy 0b10 Robot/NC 55 | . 55 . Destroy Leader 56 | . 56 . Successful Hack 3 | . 3 . Disable Machine 15 | . 15 . Destroy Structure 1 | . 1 . Lose Combat Pursuer 30 | . 30 . Influence Decreases 460 | . 360 100 Entered New Map 29 | . . 29 Time Decay 421 | . 350 71 Lost Part 10 | . 10 . Squads Dispatched 3 | . 3 . Investigation 2 | . 2 . Extermination . | . . . Reinforcement 1 | . 1 . Assault . | . . . Garrison . | . . . Intercept . | . . . Searches Triggered . | . . . Construction Impeded . | . . . Haulers Reinforced . | . . . Active Scanning Responses . | . . . Cargo Convoy Interrupts . | . . . Stealth | -11 -10 -10 --------- Run | Yrd Mat Sub Distress Signals 2 | . 2 . Communications Jammed . | . . . Distress Signals . | . . . Times Spotted 27 | . 22 5 Peak Tracking Total 7 | . 7 2 Tactical Retreats 1 | . 1 . Traps | -11 -10 -10 ------- Run | Yrd Mat Sub Traps Triggered 1 | . 1 . Indirectly . | . . . Trap Hack Attempts . | . . . Triggered . | . . . Disarmed . | . . . Reprogrammed . | . . . Reused . | . . . Traps Extracted . | . . . Installed . | . . . Triggered . | . . . Machines | -11 -10 -10 ---------- Run | Yrd Mat Sub Machines Disabled 1 | . 1 . Max in Single Turn 1 | . 1 . Machines Repaired . | . . . Machines Dismantled . | . . . Machines Sabotaged . | . . . Overloaded Fab Kills . | . . . Hacking | -11 -10 -10 --------- Run | Yrd Mat Sub Machines Accessed 7 | . 7 . Terminals 5 | . 5 . Fabricators . | . . . Repair Stations . | . . . Recycling Units 2 | . 2 . Scanalyzers . | . . . Garrison Access . | . . . Total Hacks 23 | . 23 . Successful 11 | . 11 . Failed 12 | . 12 . Catastrophic 1 | . 1 . Database Lockouts . | . . . Manual 12 | . 12 . Terminals 16 | . 16 . Fabricators . | . . . Repair Stations . | . . . Recycling Units 7 | . 7 . Scanalyzers . | . . . Garrison Access . | . . . Terminal Hacks 5 | . 5 . Robot Analysis 2 | . 2 . Locate Traps 2 | . 2 . Hauler Manifests 1 | . 1 . Fabricator Hacks . | . . . Repair Station Hacks . | . . . Recycling Unit Hacks 2 | . 2 . Retrieve Components 2 | . 2 . Scanalyzer . | . . . Garrison Access Hacks . | . . . Unauthorized Hacks 4 | . 4 . Terminals . | . . . Fabricators . | . . . Repair Stations . | . . . Recycling Units 4 | . 4 . Monitor 1 | . 1 . Reject 2 | . 2 . Recyclers 1 | . 1 . Scanalyzers . | . . . Garrison Access . | . . . Data Cores Recovered . | . . . Used . | . . . Hacking Detections 7 | . 7 . Full Trace Events 1 | . 1 . Feedback Events . | . . . Feedback Blocked . | . . . Robot Schematics Acquired . | . . . Robots Built . | . . . Authchips . | . . . Time . | . . . Total Robot Build Rating . | . . . Part Schematics Acquired . | . . . Parts Built . | . . . Authchips . | . . . Time . | . . . Total Part Build Rating . | . . . Part Studies Acquired . | . . . Parts Repaired . | . . . Time . | . . . Parts Recycled . | . . . Recycled Matter . | . . . Retrieved Matter . | . . . Retrieved Components 3 | . 3 . Parts Scanalyzed . | . . . Part Schematics Acquired . | . . . Parts Damaged . | . . . Bothacking | -11 -10 -10 ------------ Run | Yrd Mat Sub Used RIF Installer . | . . . Robots Hacked . | . . . Non-combat . | . . . Combat . | . . . Robot Hacks Applied . | . . . Relay Couplers Released . | . . . Fabnet Peak Effective % . | . . . Robots Rewired . | . . . Allies Hacked . | . . . Hacks Repelled . | . . . Allies | -11 -10 -10 -------- Run | Yrd Mat Sub Total Allies . | . . . Largest Group . | . . . Highest-Rated Group . | . . . Highest-Rated Ally . | . . . Total Orders . | . . . Ally Attacks . | . . . Total Damage . | . . . Kills . | . . . Allies Corrupted . | . . . Allies Melted . | . . . Intel | -11 -10 -10 ------- Run | Yrd Mat Sub Active Infowar (turns) 1638 | . 1042 596 Optics 307 | . . 307 Terrain 1331 | . 1042 289 Robot Analysis Total 2 | . 2 . Derelict Logs Recovered . | . . . Drone Launches . | . . . Drone Recoveries . | . . . Exploration | -11 -10 -10 ------------- Run | Yrd Mat Sub Turns Passed 1871 | 24 1242 605 Spaces Moved 806 | 6 571 229 Core . | . . . Treads 806 | 6 571 229 Legs . | . . . Wheels . | . . . Hover . | . . . Flight . | . . . Fastest Speed 160 | 160 160 240 Average Speed 204 | 160 190 240 Slowest Speed 240 | 160 240 240 Overloaded Moves . | . . . Propulsion Burnouts . | . . . Robots Hopped . | . . . Potential Cave-ins . | . . . Cave-ins Triggered . | . . . Exploration Rate (%) 36 | 3 87 19 Regions Visited 2 Branch Regions 1 Pre-discovered Areas . | . . . Known Exits Taken . | . . . Unknown Exits Taken 2 | 1 1 . Scrap Searched . | . . . Spaces Dug . | . . . Terrain Destroyed . | . . . Melee . | . . . Projectile . | . . . AOE . | . . . Terrain Rammed . | . . . Walls Destroyed . | . . . Machines Disabled . | . . . Actions | -11 -10 -10 --------- Run | Yrd Mat Sub Total 923 | 14 647 262 Wait 28 | . 11 17 Move 804 | 5 570 229 Hop . | . . . Pick Up 16 | . 16 . Fast Attach 3 | . 2 1 Attach 5 | 2 1 2 Detach . | . . . Swap 3 | . 3 . Drop 5 | 2 3 . Fire 55 | 3 39 13 Melee . | . . . Ram . | . . . Kick . | . . . Crush 4 | 2 2 . Escape Stasis . | . . . Rewire . | . . . Trap . | . . . Miscellaneous . | . . . Route ------- -11/Scrapyard -10/Materials (discovered 5 exits: [*Mat x2] / [*Min x2] / [*Sub]) -10/Subcaves (discovered 1 exit: [*Mat]) History --------- Turn | Location | Event 13 | -11/Scrapyard | Discovered new exit (range 3) 25 | -11/Scrapyard | Entered Materials 205 | -10/Materials | Discovered new exit (range 3) 273 | -10/Materials | Discovered new exit (range 8) 303 | -10/Materials | Build established: Mutant 535 | -10/Materials | Discovered new exit (range 14) 560 | -10/Materials | Discovered new exit (range 14) 958 | -10/Materials | Discovered new exit (range 10) 1080 | -10/Materials | Core integrity fell below 50% 1267 | -10/Materials | Entered Subcaves 1268 | -10/Subcaves | Approached by a straggling Scientist 1541 | -10/Subcaves | Core integrity fell below 20% 1587 | -10/Subcaves | Lost 3 parts (1p1u1w) 1614 | -10/Subcaves | Discovered new exit (range 14) 1872 | -10/Subcaves | Destroyed by 4Q-82C(R) with Subdweller Machine Gun Last Messages --------------- 01556_ Terrain Scanner destroyed. 01557_ IM-0EF(R) destroyed. 01560_ Subatomizers dissect the Sub. Optics. 01560_ Acquired 32 matter. 01565_ Acquired Sub. Optics. 01569_ Acquired 4 matter. 65-J8H(c): "I think it's somewhere northwest of here" 01574_ Acquired 3 matter. 01589_ Subatomizers dissect the Disposable Heat Sink. 01614_ EXIT=FOUND 65-J8H(c): "I think it's somewhere north of here" 01668_ Y-45 Defender destroyed. 01670_ S-10 Pest destroyed. 65-J8H(c): "I think it's somewhere north of here" 01677_ Flight Unit fries itself beyond repair. 01680_ Beam Rifle fries itself beyond repair. 01684_ Heat Sink fries itself beyond repair. 65-J8H(c): "I think it's somewhere northwest of here" 65-J8H(c): "I think it's somewhere north of here" 01870_ Lgt. Treads destroyed. Map ----- +----------------------------------------------------+ | ?????????????????????????????????????????????????? | | ?????????????????????????????????????????????????? | | ?????????????????????????????????????????????????? | | ?????????????????????????????????????????????????? | | ?????????????????????????????????????????????????? | | ?????????????????????????????????????????????????? | | ?????????????????????????????????????????????????? | | ?????????????????????????????????????????????????? | | ???????????????????????#?????????????????????????? | | ??????????????????????? ?????????????????????????? | | ??????????????????????? ?????????????????????????? | | ???????????????????????R?????????????????????????? | | ??????????????????????? ?????????????????????????? | | ??????????????????????? ?????????????????????????? | | ??????????????????????? ????????????????????????? | | ???????????????????????# ????????????????????????? | | ???????????????????????# ????????????????????????? | | ??????????????????###?## ?????????????????#####??? | | ??????????????????# ## ????###?????????## ##?? | | ??????????????????# ???? #??####??## #?? | | ???????????????????# ?### #??# #### #?? | | ????????????????????# ## #?## ## ##?? | | ????????????????????# #??# ###??? | | ?????????????????????# #??## #????? | | ???????????????????????# #### ##????? | | ????????????????????????#@ ##?????? | | ????????????????????????## #??????# | | ????????????????????????## c ###?????## | | ????????????????????????# ##??????## | | ????????????????????????# #???????# | | ????????????????????????# ###?????# | | ????????????????????????# ##??### | | ????????????????????????# ##?# | | ????????????????????????# ## #?# | | ???????????????????????# ## #?### | | ???????????????????????# # ##???# | | ??????????????????????# # ## #????# | | ?????????????????????# ## % ## ##???# | | ???????????????????? ##### % ### ##### | | ???????????????????### #???# % ## ## | | ?????????????????????## ## ???#### ### | | ??????????????????????##?# ???????# ## # | | ?????????????????????????# ???????## | | ????????????????????????? ????????# | | ????????????????????????? #????????## | | ?????????????????????????? ??????????### ## # # | | ????????????????????????????????????????#### # | | ??????????????????????????????????????????# # | | ??????????????????????????????????????????## | | ??????????????????????????????????????????# | +----------------------------------------------------+ Best States ------------- Heat Dissipation 25 Energy Generation 10 Energy Capacity 125 Matter Stores 300 Matter Capacity 300 Sight Range 21 Terrain Scan Range 14 Terrain Scan Density 10 Evasion (%) 40 Recoil Reduction 2 Item Schematics ----------------- None Robot Schematics ------------------ None Fabricated ------------ Nothing Repaired ---------- Nothing Studied --------- None Alien Tech Used ----------------- None Achievements -------------- None Challenges ------------ None Game ------ Seed QuantumTiamatProcsplitter Manual? 0 Play Time 00:08:18 Cumulative 465.2 hours Start 2026.02.18 @ 22:17:26 End 2026.02.18 @ 22:24:21 Sessions 1 Manual Loads 0 Difficulty Rogue Special Mode None Game No. 221 Rogue 221 Adventurer 0 Explorer 0 Win Type - Total 15 Types 8/0/5/2/0/0/0/0/0/0 Lore% 72 Gallery% 72 Achievement% 53 Wizard Run 0 Options --------- Layout 0 ASCII 0 Keyboard 0 Movement Numpad Keybinds 0 Fullscreen 1 Font 18/SmallcapsGlow Map View 76x50 Zoom Use 0% Tactical HUD 1 Map Filters NONE Filters NONE Steam 1 RUN: cf416620-13e6-4292-8d7a-667f496b8f63